[Event "Titled Tuesday Blitz May 16 Early 2023"]
[White "Demin, Vladimir"]
[Black "Moussard, Jules"]
[WhiteFideId "4167457"]
[BlackFideId "642908"]
[WhiteElo "2541"]
[BlackElo "2610"]
[Result "0-1"]
[Round "02"]
[TimeControl "180+2"]
[Date "2023.05.16"]
[WhiteClock "0:00:01"]
[BlackClock "0:00:56"]

1. d4 {[%clk 0:02:47]}  d5 {[%clk 0:02:59]} 2. Nc3 {[%clk 0:02:46]}  Nf6 {[%clk 0:02:56]} 3. Bf4 {[%clk 0:02:45]}  e6 {[%clk 0:02:55]} 4. Nb5 {[%clk 0:02:43]}  Na6 {[%clk 0:02:51]} 5. e3 {[%clk 0:02:42]}  Be7 {[%clk 0:02:50]} 6. Nf3 {[%clk 0:02:41]}  O-O {[%clk 0:02:50]} 7. Be2 {[%clk 0:02:38]}  c6 {[%clk 0:02:50]} 8. Nc3 {[%clk 0:02:39]}  Nb8 {[%clk 0:02:49]} 9. O-O {[%clk 0:02:38]}  a6 {[%clk 0:02:44]} 10. Ne5 {[%clk 0:02:36]}  c5 {[%clk 0:02:44]} 11. dxc5 {[%clk 0:02:34]}  Bxc5 {[%clk 0:02:43]} 12. a3 {[%clk 0:02:32]}  Nbd7 {[%clk 0:02:43]} 13. Bd3 {[%clk 0:02:28]}  h6 {[%clk 0:02:34]} 14. h3 {[%clk 0:02:15]}  Qe7 {[%clk 0:02:31]} 15. b4 {[%clk 0:02:09]}  Bd6 {[%clk 0:02:23]} 16. Nxd7 {[%clk 0:02:06]}  Bxd7 {[%clk 0:02:23]} 17. Bxd6 {[%clk 0:02:05]}  Qxd6 {[%clk 0:02:24]} 18. e4 {[%clk 0:02:04]}  Rac8 {[%clk 0:02:23]} 19. Qe1 {[%clk 0:01:39]}  Qe5 {[%clk 0:02:22]} 20. Ne2 {[%clk 0:01:13]}  dxe4 {[%clk 0:02:12]} 21. Ng3 {[%clk 0:01:13]}  Bc6 {[%clk 0:02:13]} 22. Rd1 {[%clk 0:00:58]}  Rfd8 {[%clk 0:02:07]} 23. Kh1 {[%clk 0:00:55]}  h5 {[%clk 0:02:02]} 24. f3 {[%clk 0:00:54]}  e3 {[%clk 0:01:53]} 25. f4 {[%clk 0:00:39]}  Qb2 {[%clk 0:01:41]} 26. Qxe3 {[%clk 0:00:38]}  h4 {[%clk 0:01:41]} 27. Ne2 {[%clk 0:00:30]}  Bb5 {[%clk 0:01:40]} 28. f5 {[%clk 0:00:25]}  Bxd3 {[%clk 0:01:37]} 29. Rxd3 {[%clk 0:00:25]}  exf5 {[%clk 0:01:34]} 30. Rxf5 {[%clk 0:00:20]}  Qxc2 {[%clk 0:01:32]} 31. Rxd8+ {[%clk 0:00:19]}  Rxd8 {[%clk 0:01:33]} 32. Re5 {[%clk 0:00:18]}  Rd1+ {[%clk 0:01:29]} 33. Kh2 {[%clk 0:00:18]}  Qc7 {[%clk 0:01:29]} 34. Nf4 {[%clk 0:00:17]}  Rf1 {[%clk 0:01:25]} 35. g3 {[%clk 0:00:06]}  hxg3+ {[%clk 0:01:19]} 36. Kg2 {[%clk 0:00:05]}  Rc1 {[%clk 0:00:58]} 37. Qxg3 {[%clk 0:00:01]}  Qxe5 {[%clk 0:00:56]} 0-1


[Site "https://www.chess.com"]

[Event "Titled Tuesday Blitz May 16 Early 2023"]
[White "Avazkhonov, Alikhon"]
[Black "Quesada Perez, Yuniesky"]
[WhiteFideId "14208504"]
[BlackFideId "3504409"]
[WhiteElo "1739"]
[BlackElo "2585"]
[Result "0-1"]
[Round "02"]
[TimeControl "180+2"]
[Date "2023.05.16"]
[WhiteClock "0:00:04"]
[BlackClock "0:00:17"]

1. e4 {[%clk 0:02:57]}  d5 {[%clk 0:02:59]} 2. exd5 {[%clk 0:02:56]}  Qxd5 {[%clk 0:03:00]} 3. Nc3 {[%clk 0:02:57]}  Qa5 {[%clk 0:03:01]} 4. Bc4 {[%clk 0:02:57]}  Nf6 {[%clk 0:03:01]} 5. d3 {[%clk 0:02:58]}  Bg4 {[%clk 0:03:01]} 6. f3 {[%clk 0:02:58]}  Bd7 {[%clk 0:03:01]} 7. Bd2 {[%clk 0:02:58]}  Qb6 {[%clk 0:02:56]} 8. Nge2 {[%clk 0:02:14]}  e6 {[%clk 0:02:54]} 9. g4 {[%clk 0:02:12]}  Bc5 {[%clk 0:02:40]} 10. g5 {[%clk 0:01:45]}  Bf2+ {[%clk 0:02:32]} 11. Kf1 {[%clk 0:01:40]}  Bh4 {[%clk 0:02:32]} 12. d4 {[%clk 0:01:36]}  Qc6 {[%clk 0:02:30]} 13. d5 {[%clk 0:01:22]}  Qxc4 {[%clk 0:02:16]} 14. gxf6 {[%clk 0:01:22]}  Bxf6 {[%clk 0:02:15]} 15. b3 {[%clk 0:00:58]}  Qh4 {[%clk 0:02:10]} 16. h3 {[%clk 0:00:19]}  Na6 {[%clk 0:01:52]} 17. Be1 {[%clk 0:00:07]}  Qh6 {[%clk 0:01:45]} 18. Rc1 {[%clk 0:00:05]}  O-O-O {[%clk 0:01:42]} 19. Kg2 {[%clk 0:00:04]}  exd5 {[%clk 0:01:39]} 20. Nxd5 {[%clk 0:00:04]}  Be6 {[%clk 0:01:31]} 21. c4 {[%clk 0:00:05]}  Rhe8 {[%clk 0:01:20]} 22. Bg3 {[%clk 0:00:05]}  Bxd5 {[%clk 0:01:10]} 23. cxd5 {[%clk 0:00:05]}  Be5 {[%clk 0:01:11]} 24. f4 {[%clk 0:00:04]}  Bd6 {[%clk 0:01:10]} 25. Nd4 {[%clk 0:00:05]}  Qg6 {[%clk 0:01:05]} 26. Qg4+ {[%clk 0:00:05]}  Kb8 {[%clk 0:01:04]} 27. Qxg6 {[%clk 0:00:06]}  hxg6 {[%clk 0:01:04]} 28. Kf3 {[%clk 0:00:06]}  Nc5 {[%clk 0:01:03]} 29. Nb5 {[%clk 0:00:05]}  Ne4 {[%clk 0:00:48]} 30. Bh4 {[%clk 0:00:06]}  Be7 {[%clk 0:00:41]} 31. Kxe4 {[%clk 0:00:04]}  Bxh4+ {[%clk 0:00:41]} 32. Kf3 {[%clk 0:00:05]}  Rd7 {[%clk 0:00:37]} 33. Rhd1 {[%clk 0:00:04]}  a6 {[%clk 0:00:32]} 34. Nc3 {[%clk 0:00:03]}  Rde7 {[%clk 0:00:31]} 35. Rd3 {[%clk 0:00:03]}  Bf6 {[%clk 0:00:29]} 36. d6 {[%clk 0:00:03]}  cxd6 {[%clk 0:00:29]} 37. Nd5 {[%clk 0:00:03]}  Rd7 {[%clk 0:00:26]} 38. Nb6 {[%clk 0:00:02]}  Rc7 {[%clk 0:00:25]} 39. Rcd1 {[%clk 0:00:02]}  Rh8 {[%clk 0:00:22]} 40. Rxd6 {[%clk 0:00:02]}  Rxh3+ {[%clk 0:00:19]} 41. Kg2 {[%clk 0:00:03]}  Rh8 {[%clk 0:00:19]} 42. Nd7+ {[%clk 0:00:03]}  Ka7 {[%clk 0:00:19]} 43. Nxf6 {[%clk 0:00:03]}  gxf6 {[%clk 0:00:20]} 44. Rxf6 {[%clk 0:00:04]}  Re8 {[%clk 0:00:20]} 45. Rd2 {[%clk 0:00:04]}  Re3 {[%clk 0:00:19]} 46. Rf2 {[%clk 0:00:02]}  Rec3 {[%clk 0:00:19]} 47. f5 {[%clk 0:00:03]}  g5 {[%clk 0:00:19]} 48. Rh6 {[%clk 0:00:03]}  Rc2 {[%clk 0:00:18]} 49. Rh7 {[%clk 0:00:02]}  Rxf2+ {[%clk 0:00:16]} 50. Kxf2 {[%clk 0:00:02]}  Kb6 {[%clk 0:00:17]} 51. Kg3 {[%clk 0:00:03]}  Kc6 {[%clk 0:00:16]} 52. Kg4 {[%clk 0:00:02]}  Kd6 {[%clk 0:00:12]} 53. f6 {[%clk 0:00:03]}  Ke6 {[%clk 0:00:11]} 54. Kxg5 {[%clk 0:00:03]}  Rc5+ {[%clk 0:00:12]} 55. Kf4 {[%clk 0:00:04]}  Kxf6 {[%clk 0:00:13]} 56. Rh6+ {[%clk 0:00:04]}  Ke7 {[%clk 0:00:13]} 57. Rb6 {[%clk 0:00:05]}  Rb5 {[%clk 0:00:14]} 58. Rxb5 {[%clk 0:00:05]}  axb5 {[%clk 0:00:14]} 59. Ke5 {[%clk 0:00:06]}  f6+ {[%clk 0:00:14]} 60. Kf5 {[%clk 0:00:06]}  b4 {[%clk 0:00:14]} 61. Kf4 {[%clk 0:00:06]}  Ke6 {[%clk 0:00:15]} 62. Ke4 {[%clk 0:00:06]}  f5+ {[%clk 0:00:15]} 63. Kf4 {[%clk 0:00:07]}  Kf6 {[%clk 0:00:15]} 64. Kf3 {[%clk 0:00:08]}  Ke5 {[%clk 0:00:16]} 65. Ke3 {[%clk 0:00:08]}  f4+ {[%clk 0:00:17]} 66. Kf3 {[%clk 0:00:09]}  Kf5 {[%clk 0:00:18]} 67. Kf2 {[%clk 0:00:09]}  Ke4 {[%clk 0:00:18]} 68. Ke2 {[%clk 0:00:04]}  Kd4 {[%clk 0:00:17]} 0-1


[Site "https://www.chess.com"]

[Event "Titled Tuesday Blitz May 16 Early 2023"]
[White "Fernandez Garcia, Gumersindo"]
[Black "Petrosyan, Manuel"]
[WhiteFideId "24516740"]
[BlackFideId "13300857"]
[WhiteElo "2093"]
[BlackElo "2576"]
[Result "0-1"]
[Round "02"]
[TimeControl "180+2"]
[Date "2023.05.16"]
[WhiteClock "0:00:12"]
[BlackClock "0:00:23"]

1. d4 {[%clk 0:03:00]}  Nf6 {[%clk 0:02:57]} 2. c4 {[%clk 0:03:00]}  e6 {[%clk 0:02:57]} 3. Nf3 {[%clk 0:03:00]}  d5 {[%clk 0:02:57]} 4. g3 {[%clk 0:03:00]}  dxc4 {[%clk 0:02:54]} 5. Bg2 {[%clk 0:02:59]}  c5 {[%clk 0:02:54]} 6. O-O {[%clk 0:02:57]}  Nc6 {[%clk 0:02:55]} 7. dxc5 {[%clk 0:02:54]}  Qxd1 {[%clk 0:02:56]} 8. Rxd1 {[%clk 0:02:54]}  Bxc5 {[%clk 0:02:57]} 9. Nbd2 {[%clk 0:02:54]}  c3 {[%clk 0:02:56]} 10. bxc3 {[%clk 0:02:55]}  O-O {[%clk 0:02:56]} 11. Nb3 {[%clk 0:02:53]}  Be7 {[%clk 0:02:56]} 12. Nfd4 {[%clk 0:02:43]}  Nxd4 {[%clk 0:02:38]} 13. cxd4 {[%clk 0:02:36]}  Nd5 {[%clk 0:02:38]} 14. Bb2 {[%clk 0:02:30]}  Bd7 {[%clk 0:02:26]} 15. Rac1 {[%clk 0:02:21]}  Rac8 {[%clk 0:02:14]} 16. e4 {[%clk 0:02:17]}  Nb4 {[%clk 0:02:07]} 17. a3 {[%clk 0:02:16]}  Ba4 {[%clk 0:02:03]} 18. axb4 {[%clk 0:01:38]}  Bxb3 {[%clk 0:02:02]} 19. Rxc8 {[%clk 0:01:21]}  Rxc8 {[%clk 0:02:00]} 20. Ra1 {[%clk 0:01:20]}  Rc2 {[%clk 0:01:43]} 21. Ba3 {[%clk 0:01:17]}  a5 {[%clk 0:01:34]} 22. Bf1 {[%clk 0:00:46]}  axb4 {[%clk 0:01:28]} 23. Bc1 {[%clk 0:00:45]}  Rc8 {[%clk 0:00:39]} 24. Bd2 {[%clk 0:00:45]}  Bc2 {[%clk 0:00:37]} 25. Ra7 {[%clk 0:00:33]}  b3 {[%clk 0:00:37]} 26. Rxb7 {[%clk 0:00:31]}  Ba3 {[%clk 0:00:38]} 27. Bc4 {[%clk 0:00:19]}  Rxc4 {[%clk 0:00:36]} 28. Rb8+ {[%clk 0:00:19]}  Bf8 {[%clk 0:00:36]} 29. Bc1 {[%clk 0:00:16]}  Ra4 {[%clk 0:00:30]} 30. Bb2 {[%clk 0:00:14]}  f6 {[%clk 0:00:26]} 31. f4 {[%clk 0:00:12]}  Kf7 {[%clk 0:00:23]} 32. e5 {[%clk 0:00:12]} 0-1


[Site "https://www.chess.com"]

[Event "Titled Tuesday Blitz May 16 Early 2023"]
[White "Karthik, Advaith"]
[Black "Salinas Herrera, Pablo"]
[WhiteFideId "30946050"]
[BlackFideId "3407128"]
[WhiteElo "2004"]
[BlackElo "2546"]
[Result "0-1"]
[Round "02"]
[TimeControl "180+2"]
[Date "2023.05.16"]
[WhiteClock "0:01:55"]
[BlackClock "0:01:00"]

1. d4 {[%clk 0:03:00]}  d5 {[%clk 0:02:30]} 2. c4 {[%clk 0:03:00]}  e6 {[%clk 0:02:28]} 3. Nc3 {[%clk 0:03:00]}  Nf6 {[%clk 0:02:28]} 4. Bg5 {[%clk 0:03:01]}  c6 {[%clk 0:02:28]} 5. e3 {[%clk 0:03:01]}  Nbd7 {[%clk 0:02:28]} 6. Nf3 {[%clk 0:03:00]}  Qa5 {[%clk 0:02:28]} 7. Bxf6 {[%clk 0:02:58]}  Nxf6 {[%clk 0:02:28]} 8. Qc2 {[%clk 0:02:58]}  Be7 {[%clk 0:02:28]} 9. Bd3 {[%clk 0:02:58]}  O-O {[%clk 0:02:29]} 10. O-O {[%clk 0:02:59]}  Qc7 {[%clk 0:02:28]} 11. e4 {[%clk 0:02:59]}  dxe4 {[%clk 0:02:28]} 12. Nxe4 {[%clk 0:03:00]}  Nxe4 {[%clk 0:02:29]} 13. Bxe4 {[%clk 0:03:00]}  g6 {[%clk 0:02:29]} 14. Rad1 {[%clk 0:03:00]}  Bf6 {[%clk 0:02:30]} 15. Rfe1 {[%clk 0:03:00]}  Rd8 {[%clk 0:02:31]} 16. g3 {[%clk 0:02:59]}  Bd7 {[%clk 0:02:31]} 17. Ne5 {[%clk 0:02:59]}  Be8 {[%clk 0:02:30]} 18. Bg2 {[%clk 0:02:58]}  Qb6 {[%clk 0:02:26]} 19. c5 {[%clk 0:02:56]}  Qc7 {[%clk 0:02:26]} 20. Nc4 {[%clk 0:02:56]}  Rxd4 {[%clk 0:02:25]} 21. Nd6 {[%clk 0:02:56]}  Rxd1 {[%clk 0:02:21]} 22. Rxd1 {[%clk 0:02:57]}  Rd8 {[%clk 0:02:18]} 23. h4 {[%clk 0:02:55]}  Be7 {[%clk 0:02:12]} 24. Qb3 {[%clk 0:02:51]}  Bxd6 {[%clk 0:01:40]} 25. cxd6 {[%clk 0:02:37]}  Rxd6 {[%clk 0:01:41]} 26. Rxd6 {[%clk 0:02:37]}  Qxd6 {[%clk 0:01:42]} 27. Qxb7 {[%clk 0:02:38]}  Qd7 {[%clk 0:01:42]} 28. Qa8 {[%clk 0:02:35]}  Kg7 {[%clk 0:01:40]} 29. Bf3 {[%clk 0:02:34]}  e5 {[%clk 0:01:41]} 30. Kg2 {[%clk 0:02:32]}  f5 {[%clk 0:01:37]} 31. h5 {[%clk 0:02:31]}  e4 {[%clk 0:01:34]} 32. Be2 {[%clk 0:02:29]}  gxh5 {[%clk 0:01:29]} 33. Qb8 {[%clk 0:02:24]}  Qe7 {[%clk 0:01:26]} 34. Bc4 {[%clk 0:02:20]}  Bg6 {[%clk 0:01:07]} 35. a4 {[%clk 0:02:03]}  e3 {[%clk 0:01:00]} 36. fxe3 {[%clk 0:01:55]}  Qe4+ {[%clk 0:01:00]} 0-1


[Site "https://www.chess.com"]

[Event "Titled Tuesday Blitz May 16 Early 2023"]
[White "Shubenkova, Veronika"]
[Black "Pakleza, Zbigniew"]
[WhiteFideId "44124040"]
[BlackFideId "1119290"]
[WhiteElo "2060"]
[BlackElo "2410"]
[Result "0-1"]
[Round "02"]
[TimeControl "180+2"]
[Date "2023.05.16"]
[WhiteClock "0:00:04"]
[BlackClock "0:00:05"]

1. e4 {[%clk 0:03:00]}  d6 {[%clk 0:03:00]} 2. d4 {[%clk 0:03:00]}  Nf6 {[%clk 0:02:59]} 3. f3 {[%clk 0:02:58]}  Nbd7 {[%clk 0:02:59]} 4. c4 {[%clk 0:02:58]}  e5 {[%clk 0:02:59]} 5. d5 {[%clk 0:02:56]}  Be7 {[%clk 0:03:00]} 6. Nc3 {[%clk 0:02:56]}  Nh5 {[%clk 0:02:58]} 7. Be3 {[%clk 0:02:56]}  Bg5 {[%clk 0:02:55]} 8. Bf2 {[%clk 0:02:53]}  g6 {[%clk 0:02:55]} 9. Bd3 {[%clk 0:02:48]}  a5 {[%clk 0:02:53]} 10. Nge2 {[%clk 0:02:48]}  b6 {[%clk 0:02:47]} 11. b3 {[%clk 0:02:37]}  Nc5 {[%clk 0:02:47]} 12. Bc2 {[%clk 0:02:26]}  O-O {[%clk 0:02:43]} 13. a3 {[%clk 0:02:26]}  f5 {[%clk 0:02:31]} 14. O-O {[%clk 0:02:26]}  fxe4 {[%clk 0:02:22]} 15. Nxe4 {[%clk 0:02:24]}  Nxe4 {[%clk 0:02:21]} 16. Bxe4 {[%clk 0:02:25]}  Nf6 {[%clk 0:02:11]} 17. Bc2 {[%clk 0:02:10]}  Bf5 {[%clk 0:02:03]} 18. Ng3 {[%clk 0:02:08]}  Bxc2 {[%clk 0:02:01]} 19. Qxc2 {[%clk 0:02:08]}  Bh4 {[%clk 0:01:59]} 20. Rae1 {[%clk 0:01:52]}  Bxg3 {[%clk 0:01:51]} 21. Bxg3 {[%clk 0:01:51]}  Nh5 {[%clk 0:01:49]} 22. Re4 {[%clk 0:01:51]}  Qd7 {[%clk 0:01:39]} 23. f4 {[%clk 0:01:46]}  Qf5 {[%clk 0:01:20]} 24. Qe2 {[%clk 0:01:39]}  Nf6 {[%clk 0:00:26]} 25. Re3 {[%clk 0:01:25]}  Ng4 {[%clk 0:00:25]} 26. Re4 {[%clk 0:01:19]}  Nf6 {[%clk 0:00:25]} 27. Re3 {[%clk 0:01:19]}  e4 {[%clk 0:00:26]} 28. h3 {[%clk 0:01:17]}  Rae8 {[%clk 0:00:24]} 29. Be1 {[%clk 0:01:12]}  Qd7 {[%clk 0:00:15]} 30. g4 {[%clk 0:01:08]}  h5 {[%clk 0:00:09]} 31. g5 {[%clk 0:01:08]}  Nh7 {[%clk 0:00:08]} 32. Rxe4 {[%clk 0:01:08]}  Rxe4 {[%clk 0:00:03]} 33. Qxe4 {[%clk 0:01:08]}  Qf5 {[%clk 0:00:03]} 34. Qg2 {[%clk 0:00:49]}  Re8 {[%clk 0:00:02]} 35. Bc3 {[%clk 0:00:48]}  Re3 {[%clk 0:00:02]} 36. Rf3 {[%clk 0:00:40]}  Qe4 {[%clk 0:00:02]} 37. Rxe3 {[%clk 0:00:27]}  Qxe3+ {[%clk 0:00:03]} 38. Kh2 {[%clk 0:00:23]}  Qxc3 {[%clk 0:00:03]} 39. Qe4 {[%clk 0:00:24]}  Qg7 {[%clk 0:00:03]} 40. Qe6+ {[%clk 0:00:21]}  Qf7 {[%clk 0:00:03]} 41. Qe4 {[%clk 0:00:21]}  Nf8 {[%clk 0:00:03]} 42. Kg3 {[%clk 0:00:19]}  Nd7 {[%clk 0:00:03]} 43. Kf3 {[%clk 0:00:18]}  Nc5 {[%clk 0:00:03]} 44. Qe3 {[%clk 0:00:17]}  Kf8 {[%clk 0:00:03]} 45. Qc3 {[%clk 0:00:16]}  Qg7 {[%clk 0:00:02]} 46. Qe3 {[%clk 0:00:16]}  Qe7 {[%clk 0:00:02]} 47. Qd4 {[%clk 0:00:14]}  Qg7 {[%clk 0:00:02]} 48. Qe3 {[%clk 0:00:13]}  a4 {[%clk 0:00:01]} 49. b4 {[%clk 0:00:13]}  Nb3 {[%clk 0:00:02]} 50. Kg3 {[%clk 0:00:12]}  Qd4 {[%clk 0:00:01]} 51. Qe6 {[%clk 0:00:11]}  Qd3+ {[%clk 0:00:01]} 52. Kh4 {[%clk 0:00:10]}  Qf5 {[%clk 0:00:02]} 53. Qe3 {[%clk 0:00:05]}  Na1 {[%clk 0:00:03]} 54. Qd4 {[%clk 0:00:04]}  Nc2 {[%clk 0:00:02]} 55. Qh8+ {[%clk 0:00:04]}  Ke7 {[%clk 0:00:03]} 56. Qg7+ {[%clk 0:00:05]}  Kd8 {[%clk 0:00:04]} 57. Qg8+ {[%clk 0:00:05]}  Kd7 {[%clk 0:00:05]} 58. c5 {[%clk 0:00:04]}  Qxf4# {[%clk 0:00:05]} 0-1


[Site "https://www.chess.com"]

[Event "Titled Tuesday Blitz May 16 Early 2023"]
[White "Remizov, Yaroslav"]
[Black "Dudzinski, Pawel"]
[WhiteFideId "34134015"]
[BlackFideId "1117890"]
[WhiteElo "2400"]
[BlackElo "2099"]
[Result "1-0"]
[Round "02"]
[TimeControl "180+2"]
[Date "2023.05.16"]
[WhiteClock "0:01:07"]
[BlackClock "0:00:16"]

1. Nc3 {[%clk 0:02:58]}  e5 {[%clk 0:02:59]} 2. e4 {[%clk 0:02:58]}  Nc6 {[%clk 0:02:53]} 3. Nf3 {[%clk 0:02:58]}  g6 {[%clk 0:02:53]} 4. h4 {[%clk 0:02:56]}  h6 {[%clk 0:02:52]} 5. h5 {[%clk 0:02:56]}  g5 {[%clk 0:02:52]} 6. d4 {[%clk 0:02:56]}  exd4 {[%clk 0:02:53]} 7. Nxd4 {[%clk 0:02:57]}  Bg7 {[%clk 0:02:54]} 8. Nf5 {[%clk 0:02:57]}  Bf6 {[%clk 0:02:53]} 9. Nd5 {[%clk 0:02:33]}  d6 {[%clk 0:02:53]} 10. Bd3 {[%clk 0:02:08]}  Bxf5 {[%clk 0:02:51]} 11. exf5 {[%clk 0:02:09]}  Ne5 {[%clk 0:02:25]} 12. O-O {[%clk 0:02:09]}  Nxd3 {[%clk 0:02:22]} 13. Qxd3 {[%clk 0:02:09]}  Be5 {[%clk 0:02:20]} 14. f4 {[%clk 0:02:07]}  gxf4 {[%clk 0:02:18]} 15. Bxf4 {[%clk 0:02:07]}  c6 {[%clk 0:02:14]} 16. Ne3 {[%clk 0:02:04]}  Nf6 {[%clk 0:02:01]} 17. Nc4 {[%clk 0:01:59]}  Nxh5 {[%clk 0:01:34]} 18. Bxe5 {[%clk 0:01:41]}  dxe5 {[%clk 0:01:35]} 19. Nd6+ {[%clk 0:01:40]}  Ke7 {[%clk 0:01:26]} 20. f6+ {[%clk 0:01:34]}  Nxf6 {[%clk 0:01:26]} 21. Rxf6 {[%clk 0:01:34]}  Kxf6 {[%clk 0:01:25]} 22. Qf5+ {[%clk 0:01:27]}  Ke7 {[%clk 0:01:22]} 23. Qxe5+ {[%clk 0:01:27]}  Kd7 {[%clk 0:01:20]} 24. Rd1 {[%clk 0:01:28]}  Qb6+ {[%clk 0:00:47]} 25. Kh1 {[%clk 0:01:28]}  Rad8 {[%clk 0:00:23]} 26. Nc4+ {[%clk 0:01:14]}  Qd4 {[%clk 0:00:16]} 27. Rxd4+ {[%clk 0:01:07]} 1-0


[Site "https://www.chess.com"]

[Event "Titled Tuesday Blitz May 16 Early 2023"]
[White "Koepke, Christian"]
[Black "Hayrapetyan, Hovik"]
[WhiteFideId "4655737"]
[BlackFideId "13302639"]
[WhiteElo "2204"]
[BlackElo "2348"]
[Result "0-1"]
[Round "02"]
[TimeControl "180+2"]
[Date "2023.05.16"]
[WhiteClock "0:00:00"]
[BlackClock "0:00:17"]

1. e4 {[%clk 0:03:00]}  c5 {[%clk 0:02:58]} 2. Be2 {[%clk 0:02:59]}  d6 {[%clk 0:02:55]} 3. f4 {[%clk 0:02:58]}  Nc6 {[%clk 0:02:51]} 4. Nf3 {[%clk 0:02:58]}  g6 {[%clk 0:02:51]} 5. O-O {[%clk 0:02:58]}  Bg7 {[%clk 0:02:51]} 6. c3 {[%clk 0:02:59]}  Nf6 {[%clk 0:02:47]} 7. d3 {[%clk 0:02:59]}  O-O {[%clk 0:02:45]} 8. Kh1 {[%clk 0:02:59]}  b6 {[%clk 0:02:22]} 9. Be3 {[%clk 0:02:57]}  Bb7 {[%clk 0:02:18]} 10. Nbd2 {[%clk 0:02:57]}  e5 {[%clk 0:02:12]} 11. fxe5 {[%clk 0:02:35]}  dxe5 {[%clk 0:02:06]} 12. Nc4 {[%clk 0:02:17]}  Qc7 {[%clk 0:02:01]} 13. Bg5 {[%clk 0:02:13]}  h6 {[%clk 0:01:56]} 14. Bh4 {[%clk 0:02:06]}  Nh5 {[%clk 0:01:39]} 15. Ne3 {[%clk 0:01:50]}  Nf4 {[%clk 0:01:30]} 16. Bg3 {[%clk 0:01:49]}  Rad8 {[%clk 0:01:18]} 17. Bxf4 {[%clk 0:01:46]}  exf4 {[%clk 0:01:19]} 18. Nd5 {[%clk 0:01:47]}  Qd6 {[%clk 0:01:15]} 19. Qd2 {[%clk 0:01:22]}  g5 {[%clk 0:01:13]} 20. d4 {[%clk 0:01:17]}  cxd4 {[%clk 0:00:35]} 21. cxd4 {[%clk 0:01:11]}  Kh8 {[%clk 0:00:20]} 22. h4 {[%clk 0:00:42]}  f5 {[%clk 0:00:19]} 23. Bd3 {[%clk 0:00:09]}  fxe4 {[%clk 0:00:18]} 24. Bxe4 {[%clk 0:00:09]}  Nxd4 {[%clk 0:00:19]} 25. Nxd4 {[%clk 0:00:05]}  Bxd5 {[%clk 0:00:19]} 26. Nf5 {[%clk 0:00:04]}  Qe5 {[%clk 0:00:19]} 27. Nxg7 {[%clk 0:00:02]}  Bxe4 {[%clk 0:00:18]} 28. Qc3 {[%clk 0:00:01]}  Qxc3 {[%clk 0:00:17]} 29. bxc3 {[%clk 0:00:02]}  Kxg7 {[%clk 0:00:18]} 30. hxg5 {[%clk 0:00:02]}  hxg5 {[%clk 0:00:18]} 31. Rae1 {[%clk 0:00:00]}  Rfe8 {[%clk 0:00:17]} 0-1


[Site "https://www.chess.com"]

[Event "Titled Tuesday Blitz May 16 Early 2023"]
[White "Harshavardhan G B"]
[Black "Yosha_Iglesias"]
[WhiteFideId "25059009"]
[WhiteElo "2323"]
[BlackElo "2409"]
[Result "1-0"]
[Round "02"]
[TimeControl "180+2"]
[Date "2023.05.16"]
[WhiteClock "0:02:01"]
[BlackClock "0:00:09"]

1. e4 {[%clk 0:03:00]}  c5 {[%clk 0:02:59]} 2. Nc3 {[%clk 0:03:00]}  g6 {[%clk 0:02:59]} 3. d4 {[%clk 0:02:57]}  cxd4 {[%clk 0:02:58]} 4. Qxd4 {[%clk 0:02:58]}  Nf6 {[%clk 0:02:58]} 5. e5 {[%clk 0:02:58]}  Nc6 {[%clk 0:02:58]} 6. Qf4 {[%clk 0:02:57]}  Nh5 {[%clk 0:02:49]} 7. Qe4 {[%clk 0:02:53]}  Qa5 {[%clk 0:02:24]} 8. Nf3 {[%clk 0:02:48]}  Ng7 {[%clk 0:01:36]} 9. Bd2 {[%clk 0:02:44]}  Ne6 {[%clk 0:01:15]} 10. Bc4 {[%clk 0:02:41]}  Bg7 {[%clk 0:01:11]} 11. O-O-O {[%clk 0:02:31]}  Qd8 {[%clk 0:00:38]} 12. h4 {[%clk 0:02:29]}  h5 {[%clk 0:00:34]} 13. Bxe6 {[%clk 0:02:25]}  dxe6 {[%clk 0:00:34]} 14. Kb1 {[%clk 0:02:24]}  Bd7 {[%clk 0:00:31]} 15. Bf4 {[%clk 0:02:22]}  Qc7 {[%clk 0:00:31]} 16. Ng5 {[%clk 0:02:20]}  Rc8 {[%clk 0:00:25]} 17. Rhe1 {[%clk 0:02:16]}  Qb6 {[%clk 0:00:21]} 18. Nxf7 {[%clk 0:02:12]}  Kxf7 {[%clk 0:00:20]} 19. Rxd7 {[%clk 0:02:12]}  Nxe5 {[%clk 0:00:14]} 20. Bxe5 {[%clk 0:02:10]}  Rxc3 {[%clk 0:00:14]} 21. Qf4+ {[%clk 0:02:03]}  Ke8 {[%clk 0:00:14]} 22. Bxg7 {[%clk 0:02:01]}  Kxd7 {[%clk 0:00:09]} 23. Bxc3 {[%clk 0:02:01]} 1-0


[Site "https://www.chess.com"]

[Event "Titled Tuesday Blitz May 16 Early 2023"]
[White "Pandey Srishti"]
[Black "Aradhya, Garg"]
[WhiteFideId "35093290"]
[BlackFideId "25006746"]
[WhiteElo "2123"]
[BlackElo "2263"]
[Result "1-0"]
[Round "02"]
[TimeControl "180+2"]
[Date "2023.05.16"]
[WhiteClock "0:00:13"]
[BlackClock "0:01:21"]

1. e4 {[%clk 0:03:00]}  e5 {[%clk 0:02:59]} 2. Nf3 {[%clk 0:03:00]}  Nc6 {[%clk 0:02:58]} 3. Nc3 {[%clk 0:02:49]}  Nf6 {[%clk 0:02:57]} 4. Be2 {[%clk 0:02:44]}  Bb4 {[%clk 0:02:54]} 5. O-O {[%clk 0:02:22]}  Bxc3 {[%clk 0:02:53]} 6. bxc3 {[%clk 0:02:18]}  Nxe4 {[%clk 0:02:52]} 7. Bb5 {[%clk 0:01:53]}  O-O {[%clk 0:02:50]} 8. Bxc6 {[%clk 0:01:48]}  dxc6 {[%clk 0:02:49]} 9. Nxe5 {[%clk 0:01:46]}  Qd5 {[%clk 0:02:33]} 10. Nf3 {[%clk 0:01:34]}  Bg4 {[%clk 0:02:32]} 11. h3 {[%clk 0:01:33]}  Bh5 {[%clk 0:02:29]} 12. c4 {[%clk 0:01:28]}  Qd6 {[%clk 0:01:57]} 13. d3 {[%clk 0:00:37]}  Qd5 {[%clk 0:01:55]} 14. cxd5 {[%clk 0:00:23]}  Nc3 {[%clk 0:01:55]} 15. Qd2 {[%clk 0:00:16]}  Nxd5 {[%clk 0:01:54]} 16. g4 {[%clk 0:00:16]}  Bg6 {[%clk 0:01:54]} 17. c4 {[%clk 0:00:15]}  Nb6 {[%clk 0:01:53]} 18. Bb2 {[%clk 0:00:16]}  Rfd8 {[%clk 0:01:53]} 19. Qc3 {[%clk 0:00:16]}  f6 {[%clk 0:01:53]} 20. Rad1 {[%clk 0:00:16]}  Na4 {[%clk 0:01:53]} 21. Qb3 {[%clk 0:00:16]}  Nxb2 {[%clk 0:01:53]} 22. Qxb2 {[%clk 0:00:17]}  Bxd3 {[%clk 0:01:53]} 23. Rfe1 {[%clk 0:00:17]}  b6 {[%clk 0:01:52]} 24. c5 {[%clk 0:00:17]}  Bc4 {[%clk 0:01:51]} 25. cxb6 {[%clk 0:00:16]}  axb6 {[%clk 0:01:51]} 26. a3 {[%clk 0:00:17]}  Bd5 {[%clk 0:01:51]} 27. Qc3 {[%clk 0:00:16]}  Ra5 {[%clk 0:01:45]} 28. Nd4 {[%clk 0:00:16]}  Rc5 {[%clk 0:01:42]} 29. Qe3 {[%clk 0:00:17]}  Ra8 {[%clk 0:01:38]} 30. Nf5 {[%clk 0:00:15]}  Bf7 {[%clk 0:01:35]} 31. Rd7 {[%clk 0:00:13]}  Re5 {[%clk 0:01:34]} 32. Qd2 {[%clk 0:00:12]}  Rxe1+ {[%clk 0:01:33]} 33. Qxe1 {[%clk 0:00:13]}  Re8 {[%clk 0:01:33]} 34. Qd2 {[%clk 0:00:12]}  Kf8 {[%clk 0:01:29]} 35. Rxf7+ {[%clk 0:00:12]}  Kxf7 {[%clk 0:01:30]} 36. Qd7+ {[%clk 0:00:12]}  Kf8 {[%clk 0:01:21]} 37. Qxg7# {[%clk 0:00:13]} 1-0


[Site "https://www.chess.com"]